[Event "Early-Titled-Tuesday-Blitz-June-18-2024"]
[Site "Chess.com"]
[Date "2024.06.18"]
[Round "7"]
[White "glucolisis04"]
[Black "eltenedor"]
[Result "1-0"]
[WhiteElo "2288"]
[BlackElo "2121"]
[TimeControl "180+1"]
[EndTime "9:20:42 PDT"]
[Termination "glucolisis04 won on time"]

1. d4 {[%clk 0:03:00.9]} 1... d5 {[%clk 0:02:58]} 2. c4 {[%clk 0:03:01.4]} 2...
dxc4 {[%clk 0:02:57.3]} 3. e4 {[%clk 0:03:00.9]} 3... Nf6 {[%clk 0:02:56.1]} 4.
e5 {[%clk 0:03:00.4]} 4... Nd5 {[%clk 0:02:55.4]} 5. Bxc4 {[%clk 0:03:00.8]}
5... Nb6 {[%clk 0:02:55.2]} 6. Bb3 {[%clk 0:03:00]} 6... Nc6 {[%clk 0:02:54.6]}
7. Nf3 {[%clk 0:03:00.4]} 7... Bf5 {[%clk 0:02:49.2]} 8. a3 {[%clk 0:02:54.8]}
8... e6 {[%clk 0:02:46.5]} 9. Be3 {[%clk 0:02:54.4]} 9... Be7 {[%clk 0:02:31.1]}
10. O-O {[%clk 0:02:50.3]} 10... O-O {[%clk 0:02:29.8]} 11. Nc3 {[%clk
0:02:50.7]} 11... Bg4 {[%clk 0:02:21.4]} 12. Ne4 {[%clk 0:02:16.2]} 12... Na5
{[%clk 0:01:45]} 13. Bc2 {[%clk 0:02:11]} 13... Nac4 {[%clk 0:01:40.2]} 14. Qd3
{[%clk 0:02:06.7]} 14... g6 {[%clk 0:01:30.8]} 15. b3 {[%clk 0:01:59.3]} 15...
Nxa3 {[%clk 0:01:21.8]} 16. Rxa3 {[%clk 0:01:55.9]} 16... Bxa3 {[%clk
0:01:18.5]} 17. Nf6+ {[%clk 0:01:55.1]} 17... Kh8 {[%clk 0:01:15.5]} 18. Nxg4
{[%clk 0:01:48.7]} 18... Nd5 {[%clk 0:01:13.8]} 19. Bg5 {[%clk 0:01:43.1]} 19...
Be7 {[%clk 0:01:12.4]} 20. Bxe7 {[%clk 0:01:39.9]} 20... Qxe7 {[%clk 0:01:11.6]}
21. Qe4 {[%clk 0:01:33.7]} 21... c6 {[%clk 0:01:03.4]} 22. Bd3 {[%clk
0:01:19.8]} 22... b5 {[%clk 0:00:54.9]} 23. Rc1 {[%clk 0:01:17.2]} 23... Rfc8
{[%clk 0:00:52.8]} 24. h4 {[%clk 0:01:13.8]} 24... Qa3 {[%clk 0:00:44]} 25. Rc5
{[%clk 0:01:06.9]} 25... Qxb3 {[%clk 0:00:36.2]} 26. Rxd5 {[%clk 0:00:54.6]}
26... Qxd5 {[%clk 0:00:24.6]} 27. Qf4 {[%clk 0:00:54.8]} 27... Qd8 {[%clk
0:00:23]} 28. Nf6 {[%clk 0:00:47.6]} 28... Qf8 {[%clk 0:00:19.2]} 29. Ng5 {[%clk
0:00:48]} 29... h6 {[%clk 0:00:16.2]} 30. Nge4 {[%clk 0:00:44]} 30... Qg7 {[%clk
0:00:13.6]} 31. Nd7 {[%clk 0:00:43.3]} 31... Rc7 {[%clk 0:00:11.4]} 32. Ndc5
{[%clk 0:00:43.1]} 32... a5 {[%clk 0:00:10.8]} 33. Nd6 {[%clk 0:00:37.2]} 33...
a4 {[%clk 0:00:10.8]} 34. Qc1 {[%clk 0:00:35.4]} 34... a3 {[%clk 0:00:10.5]} 35.
Nb3 {[%clk 0:00:31.1]} 35... a2 {[%clk 0:00:10.2]} 36. Bxb5 {[%clk 0:00:26.3]}
36... a1=Q {[%clk 0:00:07.5]} 37. Nxa1 {[%clk 0:00:25.9]} 37... Rxa1 {[%clk
0:00:06.2]} 38. Qxa1 {[%clk 0:00:24.5]} 38... cxb5 {[%clk 0:00:07.1]} 39. Nxb5
{[%clk 0:00:20.8]} 39... Rc8 {[%clk 0:00:05.5]} 40. Nd6 {[%clk 0:00:21.1]} 40...
Rb8 {[%clk 0:00:05.9]} 41. Qa7 {[%clk 0:00:20.9]} 41... Rf8 {[%clk 0:00:06.2]}
42. Qe7 {[%clk 0:00:19.8]} 42... g5 {[%clk 0:00:05.7]} 43. hxg5 {[%clk
0:00:17.9]} 43... hxg5 {[%clk 0:00:06.6]} 44. Ne4 {[%clk 0:00:13.1]} 44... g4
{[%clk 0:00:06.2]} 45. Nf6 {[%clk 0:00:13.5]} 45... Rb8 {[%clk 0:00:04]} 46. g3
{[%clk 0:00:08]} 46... Rb1+ {[%clk 0:00:03.9]} 47. Kg2 {[%clk 0:00:08.2]} 47...
Rb2 {[%clk 0:00:02.8]} 48. Qe8+ {[%clk 0:00:08.7]} 1-0

[Event "Early-Titled-Tuesday-Blitz-June-18-2024"]
[Site "Chess.com"]
[Date "2024.06.18"]
[Round "7"]
[White "ArtemDyachuk"]
[Black "sokidze"]
[Result "0-1"]
[WhiteElo "2633"]
[BlackElo "2782"]
[TimeControl "180+1"]
[EndTime "9:20:46 PDT"]
[Termination "sokidze won by resignation"]

1. e4 {[%clk 0:03:00.9]} 1... c6 {[%clk 0:03:00]} 2. d4 {[%clk 0:02:53.6]} 2...
d5 {[%clk 0:03:00.2]} 3. e5 {[%clk 0:02:53.9]} 3... Bf5 {[%clk 0:02:59.9]} 4. h4
{[%clk 0:02:53.9]} 4... h5 {[%clk 0:02:59.7]} 5. Bd3 {[%clk 0:02:53.9]} 5...
Bxd3 {[%clk 0:02:59.4]} 6. Qxd3 {[%clk 0:02:54.4]} 6... Qa5+ {[%clk 0:02:59.5]}
7. b4 {[%clk 0:02:54.9]} 7... Qxb4+ {[%clk 0:02:58.7]} 8. Nd2 {[%clk 0:02:53.4]}
8... e6 {[%clk 0:02:58.6]} 9. Rb1 {[%clk 0:02:51.6]} 9... Qe7 {[%clk 0:02:58.4]}
10. c4 {[%clk 0:02:39]} 10... Qd7 {[%clk 0:02:29.1]} 11. Ne2 {[%clk 0:01:57.3]}
11... Ne7 {[%clk 0:02:19.9]} 12. O-O {[%clk 0:01:34]} 12... Nf5 {[%clk
0:02:00.8]} 13. Nf3 {[%clk 0:01:13]} 13... Be7 {[%clk 0:01:37.7]} 14. g3 {[%clk
0:00:58.3]} 14... dxc4 {[%clk 0:01:30.4]} 15. Qxc4 {[%clk 0:00:56.3]} 15... b5
{[%clk 0:01:30.6]} 16. Qd3 {[%clk 0:00:54.3]} 16... Na6 {[%clk 0:01:27.1]} 17.
Bd2 {[%clk 0:00:32.9]} 17... Nc7 {[%clk 0:01:18.5]} 18. Rfc1 {[%clk 0:00:26.4]}
18... Rc8 {[%clk 0:01:13.6]} 19. Nf4 {[%clk 0:00:21.4]} 19... Nd5 {[%clk
0:01:09.8]} 20. Nxd5 {[%clk 0:00:15.2]} 20... exd5 {[%clk 0:01:04.1]} 21. e6
{[%clk 0:00:14]} 21... fxe6 {[%clk 0:00:23]} 22. Ne5 {[%clk 0:00:13.9]} 22...
Qb7 {[%clk 0:00:21.5]} 23. Ng6 {[%clk 0:00:13.1]} 23... Rg8 {[%clk 0:00:21]} 24.
Qf3 {[%clk 0:00:06.7]} 24... Bf6 {[%clk 0:00:19.4]} 25. Qxh5 {[%clk 0:00:06.6]}
25... Qf7 {[%clk 0:00:19.9]} 26. Qg4 {[%clk 0:00:04.8]} 26... Nxd4 {[%clk
0:00:18.7]} 27. Nf4 {[%clk 0:00:03.2]} 27... g5 {[%clk 0:00:16.1]} 28. Nxd5
{[%clk 0:00:03]} 28... Kf8 {[%clk 0:00:04.6]} 29. Nxf6 {[%clk 0:00:02.4]} 29...
Qxf6 {[%clk 0:00:05.5]} 30. hxg5 {[%clk 0:00:02.2]} 30... Nf3+ {[%clk
0:00:05.9]} 31. Kg2 {[%clk 0:00:01.5]} 31... Nxg5 {[%clk 0:00:06.3]} 32. Qb4+
{[%clk 0:00:01.2]} 32... Kf7 {[%clk 0:00:05.7]} 33. Qc3 {[%clk 0:00:01.1]} 33...
Qxc3 {[%clk 0:00:05.5]} 34. Bxc3 {[%clk 0:00:02]} 34... Ne4 {[%clk 0:00:06.1]}
35. Bd4 {[%clk 0:00:01.7]} 35... c5 {[%clk 0:00:06.7]} 36. Be3 {[%clk
0:00:02.3]} 36... a6 {[%clk 0:00:06.7]} 37. f3 {[%clk 0:00:02.8]} 37... Rxg3+
{[%clk 0:00:06.5]} 38. Kf1 {[%clk 0:00:03.4]} 38... Rxf3+ {[%clk 0:00:06.9]} 39.
Ke2 {[%clk 0:00:04.2]} 39... Rh3 {[%clk 0:00:07.3]} 40. Rf1+ {[%clk 0:00:03.7]}
40... Ke7 {[%clk 0:00:07.4]} 41. Rg1 {[%clk 0:00:04.1]} 41... Ng3+ {[%clk
0:00:07.7]} 42. Kf3 {[%clk 0:00:03.3]} 42... Nf5+ {[%clk 0:00:08.3]} 43. Kf4
{[%clk 0:00:03.7]} 43... Rxe3 {[%clk 0:00:08.4]} 44. a4 {[%clk 0:00:04.1]} 44...
b4 {[%clk 0:00:07.5]} 45. Rg7+ {[%clk 0:00:03.9]} 45... Nxg7 {[%clk 0:00:07.4]}
46. Rg1 {[%clk 0:00:04.6]} 46... Nf5 {[%clk 0:00:07.7]} 47. a5 {[%clk
0:00:04.5]} 47... b3 {[%clk 0:00:07.7]} 48. Rg6 {[%clk 0:00:04.3]} 48... b2
{[%clk 0:00:07.7]} 49. Rf6 {[%clk 0:00:04.6]} 49... Kxf6 {[%clk 0:00:07.4]} 0-1

[Event "Early-Titled-Tuesday-Blitz-June-18-2024"]
[Site "Chess.com"]
[Date "2024.06.18"]
[Round "7"]
[White "VerdeNotte"]
[Black "GM_dmitrij"]
[Result "0-1"]
[WhiteElo "2855"]
[BlackElo "3037"]
[TimeControl "180+1"]
[EndTime "9:20:48 PDT"]
[Termination "GM_dmitrij won by resignation"]

1. Nf3 {[%clk 0:02:52.9]} 1... d5 {[%clk 0:02:57.7]} 2. g3 {[%clk 0:02:53.2]}
2... Nc6 {[%clk 0:02:55.3]} 3. d4 {[%clk 0:02:53]} 3... Bf5 {[%clk 0:02:56]} 4.
Bg2 {[%clk 0:02:53]} 4... e6 {[%clk 0:02:56.2]} 5. O-O {[%clk 0:02:53.2]} 5...
Nb4 {[%clk 0:02:52.4]} 6. Na3 {[%clk 0:02:53.1]} 6... Nc6 {[%clk 0:02:51.9]} 7.
c4 {[%clk 0:02:48.9]} 7... Nf6 {[%clk 0:02:40.1]} 8. Qb3 {[%clk 0:02:31.5]} 8...
Bxa3 {[%clk 0:02:19]} 9. cxd5 {[%clk 0:02:18]} 9... exd5 {[%clk 0:02:08.1]} 10.
Qxa3 {[%clk 0:02:16.1]} 10... Qe7 {[%clk 0:02:08.2]} 11. Qxe7+ {[%clk
0:02:10.9]} 11... Nxe7 {[%clk 0:02:09.1]} 12. Bf4 {[%clk 0:01:59.8]} 12... c6
{[%clk 0:02:09.2]} 13. Be5 {[%clk 0:01:58.7]} 13... Be4 {[%clk 0:01:58.3]} 14.
Bxf6 {[%clk 0:01:57.1]} 14... gxf6 {[%clk 0:01:59.2]} 15. Nd2 {[%clk 0:01:56.2]}
15... Bxg2 {[%clk 0:01:58.4]} 16. Kxg2 {[%clk 0:01:57.1]} 16... Nf5 {[%clk
0:01:54.3]} 17. e3 {[%clk 0:01:54.9]} 17... a5 {[%clk 0:01:54.5]} 18. a4 {[%clk
0:01:54]} 18... Ke7 {[%clk 0:01:49.7]} 19. Rfc1 {[%clk 0:01:53.1]} 19... Nd6
{[%clk 0:01:48.1]} 20. Kf3 {[%clk 0:01:50]} 20... Ra6 {[%clk 0:01:44.7]} 21. Rc2
{[%clk 0:01:39]} 21... f5 {[%clk 0:01:44.3]} 22. Ke2 {[%clk 0:01:37.1]} 22...
Rb6 {[%clk 0:01:38.9]} 23. Rb1 {[%clk 0:01:24.2]} 23... Rb4 {[%clk 0:01:38.3]}
24. b3 {[%clk 0:01:22]} 24... Ra8 {[%clk 0:01:38.8]} 25. f3 {[%clk 0:01:18.1]}
25... Rg8 {[%clk 0:01:27]} 26. Rbb2 {[%clk 0:01:15.3]} 26... h5 {[%clk
0:01:26.8]} 27. Kf2 {[%clk 0:01:13.5]} 27... h4 {[%clk 0:01:22.9]} 28. Nb1
{[%clk 0:01:06.2]} 28... hxg3+ {[%clk 0:01:21.7]} 29. hxg3 {[%clk 0:01:06.1]}
29... Rh8 {[%clk 0:01:22.3]} 30. Kg1 {[%clk 0:01:02.4]} 30... Kd7 {[%clk
0:01:02.1]} 31. Nc3 {[%clk 0:01:00.9]} 31... Rg8 {[%clk 0:00:49.3]} 32. Rg2
{[%clk 0:00:55.8]} 32... f4 {[%clk 0:00:38.8]} 33. Na2 {[%clk 0:00:32.6]} 33...
Rb6 {[%clk 0:00:38.3]} 34. exf4 {[%clk 0:00:09.4]} 34... Nf5 {[%clk 0:00:37.4]}
35. Nc1 {[%clk 0:00:07.7]} 35... Rxg3 {[%clk 0:00:29]} 36. Rxg3 {[%clk
0:00:07.6]} 36... Nxg3 {[%clk 0:00:29.9]} 37. Kf2 {[%clk 0:00:07.2]} 37... Nf5
{[%clk 0:00:29.5]} 38. Ne2 {[%clk 0:00:07.3]} 38... Rb4 {[%clk 0:00:30.1]} 39.
Rb1 {[%clk 0:00:04.1]} 39... Nxd4 {[%clk 0:00:29.5]} 40. Nxd4 {[%clk 0:00:04.5]}
40... Rxd4 {[%clk 0:00:30.4]} 41. Kg3 {[%clk 0:00:03.2]} 41... Rb4 {[%clk
0:00:25.2]} 42. Kg4 {[%clk 0:00:03.2]} 42... Ke6 {[%clk 0:00:24.1]} 43. Kg5
{[%clk 0:00:03.2]} 43... f6+ {[%clk 0:00:24.1]} 44. Kg4 {[%clk 0:00:03.8]} 44...
c5 {[%clk 0:00:21.5]} 45. Re1+ {[%clk 0:00:03.9]} 45... Kf7 {[%clk 0:00:20.6]}
46. Re3 {[%clk 0:00:04.3]} 46... d4 {[%clk 0:00:14.5]} 47. Rd3 {[%clk
0:00:04.4]} 47... Ke6 {[%clk 0:00:13.8]} 48. f5+ {[%clk 0:00:01.1]} 48... Ke5
{[%clk 0:00:14.7]} 49. Rd1 {[%clk 0:00:01.5]} 49... Rxb3 {[%clk 0:00:14.5]} 50.
Re1+ {[%clk 0:00:02.1]} 50... Re3 {[%clk 0:00:14.8]} 51. Rb1 {[%clk 0:00:02.4]}
51... d3 {[%clk 0:00:15.1]} 52. Rxb7 {[%clk 0:00:02.3]} 52... Kd4 {[%clk
0:00:13.6]} 53. Rd7+ {[%clk 0:00:01.5]} 53... Kc3 {[%clk 0:00:13.9]} 54. Kf4
{[%clk 0:00:02.1]} 54... Re1 {[%clk 0:00:12.5]} 55. Rc7 {[%clk 0:00:01.4]} 55...
c4 {[%clk 0:00:12.8]} 0-1

[Event "Early-Titled-Tuesday-Blitz-June-18-2024"]
[Site "Chess.com"]
[Date "2024.06.18"]
[Round "7"]
[White "ulises2013"]
[Black "aeiiuu"]
[Result "0-1"]
[WhiteElo "2854"]
[BlackElo "2623"]
[TimeControl "180+1"]
[EndTime "9:20:49 PDT"]
[Termination "aeiiuu won on time"]

1. e4 {[%clk 0:03:00.9]} 1... c5 {[%clk 0:02:59.7]} 2. g3 {[%clk 0:02:58.5]}
2... d5 {[%clk 0:02:59.7]} 3. exd5 {[%clk 0:02:56.4]} 3... Qxd5 {[%clk
0:02:59.7]} 4. Nf3 {[%clk 0:02:56.9]} 4... Nc6 {[%clk 0:02:59.8]} 5. Bg2 {[%clk
0:02:57.1]} 5... Nf6 {[%clk 0:03:00.4]} 6. Nc3 {[%clk 0:02:47.8]} 6... Qd8
{[%clk 0:02:55.1]} 7. O-O {[%clk 0:02:46.1]} 7... g6 {[%clk 0:02:55]} 8. d3
{[%clk 0:02:40.7]} 8... Bg7 {[%clk 0:02:55]} 9. Be3 {[%clk 0:02:40.8]} 9... b6
{[%clk 0:02:38]} 10. d4 {[%clk 0:02:36.5]} 10... Ng4 {[%clk 0:02:18.2]} 11. dxc5
{[%clk 0:02:21.2]} 11... Nxe3 {[%clk 0:02:14.1]} 12. fxe3 {[%clk 0:02:10.7]}
12... bxc5 {[%clk 0:02:10.9]} 13. Ne5 {[%clk 0:01:49.5]} 13... Nxe5 {[%clk
0:01:50.3]} 14. Qxd8+ {[%clk 0:01:45.3]} 14... Kxd8 {[%clk 0:01:45.2]} 15. Bxa8
{[%clk 0:01:46.2]} 15... Bg4 {[%clk 0:01:32.3]} 16. Bg2 {[%clk 0:01:38.9]} 16...
a6 {[%clk 0:01:25.8]} 17. Rf4 {[%clk 0:01:29.2]} 17... Bd7 {[%clk 0:01:18.1]}
18. Rd1 {[%clk 0:01:21.3]} 18... e6 {[%clk 0:01:14.4]} 19. Na4 {[%clk
0:01:05.3]} 19... g5 {[%clk 0:00:59.6]} 20. Rff1 {[%clk 0:00:53.6]} 20... Ke7
{[%clk 0:00:58.8]} 21. Nxc5 {[%clk 0:00:53.1]} 21... Bb5 {[%clk 0:00:59.4]} 22.
Rfe1 {[%clk 0:00:42.2]} 22... Rc8 {[%clk 0:00:53.2]} 23. b4 {[%clk 0:00:42.3]}
23... g4 {[%clk 0:00:49.7]} 24. Kf2 {[%clk 0:00:37.4]} 24... Rc7 {[%clk
0:00:47.7]} 25. a4 {[%clk 0:00:35.7]} 25... Bc4 {[%clk 0:00:47.4]} 26. Bf1
{[%clk 0:00:33.5]} 26... a5 {[%clk 0:00:39.7]} 27. c3 {[%clk 0:00:30.3]} 27...
Bd5 {[%clk 0:00:31.4]} 28. e4 {[%clk 0:00:30.4]} 28... Ba8 {[%clk 0:00:24.9]}
29. Be2 {[%clk 0:00:27.7]} 29... h5 {[%clk 0:00:23.9]} 30. Rc1 {[%clk
0:00:25.2]} 30... Bh6 {[%clk 0:00:23]} 31. Rc2 {[%clk 0:00:21.6]} 31... Bf8
{[%clk 0:00:23]} 32. Rd1 {[%clk 0:00:21.4]} 32... Kf6 {[%clk 0:00:22.9]} 33. Bb5
{[%clk 0:00:20.4]} 33... Bxc5+ {[%clk 0:00:22.9]} 34. bxc5 {[%clk 0:00:20.8]}
34... Bxe4 {[%clk 0:00:23.6]} 35. Rcc1 {[%clk 0:00:17.7]} 35... Rxc5 {[%clk
0:00:23.9]} 36. Ke3 {[%clk 0:00:17]} 36... Bf3 {[%clk 0:00:22.5]} 37. Rd4 {[%clk
0:00:16.2]} 37... Ng6 {[%clk 0:00:22.4]} 38. c4 {[%clk 0:00:16.2]} 38... h4
{[%clk 0:00:21.8]} 39. Rd8 {[%clk 0:00:15.8]} 39... hxg3 {[%clk 0:00:21.8]} 40.
hxg3 {[%clk 0:00:16.1]} 40... Ne7 {[%clk 0:00:22.5]} 41. Kd4 {[%clk 0:00:14.7]}
41... Re5 {[%clk 0:00:22.2]} 42. c5 {[%clk 0:00:12.1]} 42... Nf5+ {[%clk
0:00:22.8]} 43. Kc4 {[%clk 0:00:12.2]} 43... Ne3+ {[%clk 0:00:18.9]} 44. Kb3
{[%clk 0:00:11.3]} 44... Bd5+ {[%clk 0:00:18.2]} 45. Kb2 {[%clk 0:00:10.1]}
45... Nf5 {[%clk 0:00:13.8]} 46. c6 {[%clk 0:00:10.1]} 46... Bxc6 {[%clk
0:00:14.3]} 47. Rxc6 {[%clk 0:00:10]} 47... Nxg3 {[%clk 0:00:14.8]} 48. Rg8
{[%clk 0:00:09.1]} 48... Kf5 {[%clk 0:00:12.1]} 49. Bd3+ {[%clk 0:00:06.1]}
49... Kf4 {[%clk 0:00:12.6]} 50. Rc4+ {[%clk 0:00:06.3]} 50... Ke3 {[%clk
0:00:12.7]} 51. Bc2 {[%clk 0:00:06]} 51... f5 {[%clk 0:00:12.1]} 52. Rc3+ {[%clk
0:00:03.8]} 52... Kf4 {[%clk 0:00:12.2]} 53. Rg6 {[%clk 0:00:03.8]} 53... Ne2
{[%clk 0:00:12.1]} 54. Rc6 {[%clk 0:00:03.8]} 54... Nd4 {[%clk 0:00:12.7]} 55.
Ra6 {[%clk 0:00:03.8]} 55... Re2 {[%clk 0:00:11.9]} 56. Kc3 {[%clk 0:00:04.2]}
56... Nxc2 {[%clk 0:00:12.1]} 57. Rgxe6 {[%clk 0:00:02.7]} 57... Ne3 {[%clk
0:00:12.6]} 58. Rxa5 {[%clk 0:00:02.5]} 58... g3 {[%clk 0:00:12.4]} 0-1

[Event "Early-Titled-Tuesday-Blitz-June-18-2024"]
[Site "Chess.com"]
[Date "2024.06.18"]
[Round "7"]
[White "Matols"]
[Black "Nf3c5"]
[Result "0-1"]
[WhiteElo "2358"]
[BlackElo "2599"]
[TimeControl "180+1"]
[EndTime "9:20:49 PDT"]
[Termination "Nf3c5 won on time"]

1. d4 {[%clk 0:03:00.9]} 1... Nf6 {[%clk 0:02:53.9]} 2. c4 {[%clk 0:03:00.9]}
2... Nc6 {[%clk 0:02:53.9]} 3. Nf3 {[%clk 0:02:57.3]} 3... e6 {[%clk 0:02:54.4]}
4. g3 {[%clk 0:02:54.7]} 4... Bb4+ {[%clk 0:02:53.4]} 5. Bd2 {[%clk 0:02:53.7]}
5... a5 {[%clk 0:02:45.2]} 6. Bg2 {[%clk 0:02:51.9]} 6... d6 {[%clk 0:02:45.6]}
7. O-O {[%clk 0:02:52.1]} 7... e5 {[%clk 0:02:46.2]} 8. dxe5 {[%clk 0:02:41]}
8... dxe5 {[%clk 0:02:38.6]} 9. Nc3 {[%clk 0:02:38.6]} 9... Be6 {[%clk
0:02:32.4]} 10. b3 {[%clk 0:02:36.6]} 10... h6 {[%clk 0:02:29.8]} 11. Nb5 {[%clk
0:02:20.7]} 11... Qe7 {[%clk 0:02:24.9]} 12. Qc2 {[%clk 0:02:11.6]} 12... O-O
{[%clk 0:02:20.4]} 13. Rad1 {[%clk 0:02:07.7]} 13... Bg4 {[%clk 0:02:05.8]} 14.
Be3 {[%clk 0:01:57.2]} 14... a4 {[%clk 0:01:45.4]} 15. h3 {[%clk 0:01:53.3]}
15... axb3 {[%clk 0:01:43.2]} 16. axb3 {[%clk 0:01:52.2]} 16... Bh5 {[%clk
0:01:43.8]} 17. Nh4 {[%clk 0:01:42.6]} 17... e4 {[%clk 0:01:34.8]} 18. Nf5
{[%clk 0:01:35.1]} 18... Qe5 {[%clk 0:01:26.3]} 19. g4 {[%clk 0:01:15.9]} 19...
Bxg4 {[%clk 0:01:21.2]} 20. hxg4 {[%clk 0:01:16.8]} 20... Nxg4 {[%clk
0:01:21.3]} 21. Ng3 {[%clk 0:01:16.7]} 21... Nxe3 {[%clk 0:01:19.4]} 22. fxe3
{[%clk 0:01:13.1]} 22... Qxg3 {[%clk 0:01:19.9]} 23. Qxe4 {[%clk 0:01:05.3]}
23... Rae8 {[%clk 0:01:07.5]} 24. Qf4 {[%clk 0:01:03.8]} 24... Rxe3 {[%clk
0:01:04.2]} 25. Nxc7 {[%clk 0:00:59.9]} 25... Rxb3 {[%clk 0:00:48.9]} 26. Qxg3
{[%clk 0:00:46.2]} 26... Rxg3 {[%clk 0:00:47.8]} 27. Kh2 {[%clk 0:00:42.8]}
27... Re3 {[%clk 0:00:46.1]} 28. Bf3 {[%clk 0:00:35.8]} 28... Re5 {[%clk
0:00:38.1]} 29. Nd5 {[%clk 0:00:32]} 29... Bc5 {[%clk 0:00:35.3]} 30. Rb1 {[%clk
0:00:26.5]} 30... Bd6 {[%clk 0:00:23.9]} 31. Kg2 {[%clk 0:00:23.6]} 31... Nd8
{[%clk 0:00:23.7]} 32. Rfd1 {[%clk 0:00:18.5]} 32... Rg5+ {[%clk 0:00:23.7]} 33.
Kf2 {[%clk 0:00:17.2]} 33... Bc5+ {[%clk 0:00:21.8]} 34. e3 {[%clk 0:00:15.7]}
34... Re8 {[%clk 0:00:21.3]} 35. Rd3 {[%clk 0:00:14.4]} 35... Nc6 {[%clk
0:00:19.7]} 36. Nc7 {[%clk 0:00:13.4]} 36... Re7 {[%clk 0:00:14.3]} 37. Rxb7
{[%clk 0:00:12.6]} 37... Ne5 {[%clk 0:00:13.6]} 38. Rd8+ {[%clk 0:00:09.4]}
38... Kh7 {[%clk 0:00:14]} 39. Be4+ {[%clk 0:00:09.1]} 39... f5 {[%clk
0:00:13.4]} 40. Bb1 {[%clk 0:00:08]} 40... Ng4+ {[%clk 0:00:13.5]} 41. Kf3
{[%clk 0:00:07]} 41... Rxe3+ {[%clk 0:00:14]} 42. Kg2 {[%clk 0:00:06.5]} 42...
Ne5+ {[%clk 0:00:14.1]} 43. Kf1 {[%clk 0:00:05.6]} 43... Rf3+ {[%clk 0:00:13.5]}
44. Ke2 {[%clk 0:00:05.3]} 44... Rg2+ {[%clk 0:00:14.1]} 45. Ke1 {[%clk
0:00:04.7]} 45... Bf2+ {[%clk 0:00:06.4]} 46. Kd1 {[%clk 0:00:03.8]} 46... Bc5
{[%clk 0:00:05.2]} 47. Ke1 {[%clk 0:00:03.6]} 47... Rf4 {[%clk 0:00:03.7]} 48.
Ne6 {[%clk 0:00:02.4]} 48... Bf2+ {[%clk 0:00:01.8]} 49. Kd1 {[%clk 0:00:02.1]}
49... Rf3 {[%clk 0:00:02.7]} 0-1

[Event "Early-Titled-Tuesday-Blitz-June-18-2024"]
[Site "Chess.com"]
[Date "2024.06.18"]
[Round "7"]
[White "HansOnTwitch"]
[Black "Vaathi_Coming"]
[Result "0-1"]
[WhiteElo "3145"]
[BlackElo "2909"]
[TimeControl "180+1"]
[EndTime "9:20:53 PDT"]
[Termination "Vaathi_Coming won by checkmate"]

1. e4 {[%clk 0:03:00.9]} 1... g6 {[%clk 0:02:57]} 2. d4 {[%clk 0:03:00.5]} 2...
Bg7 {[%clk 0:02:57.6]} 3. c3 {[%clk 0:02:59.8]} 3... d6 {[%clk 0:02:57.1]} 4.
Bd3 {[%clk 0:02:59.5]} 4... Nf6 {[%clk 0:02:57.4]} 5. Nf3 {[%clk 0:02:59.3]}
5... O-O {[%clk 0:02:57.7]} 6. O-O {[%clk 0:02:59.6]} 6... c6 {[%clk 0:02:56.6]}
7. h3 {[%clk 0:02:59.1]} 7... Qc7 {[%clk 0:02:57]} 8. Nbd2 {[%clk 0:02:50.2]}
8... Nbd7 {[%clk 0:02:53.5]} 9. Re1 {[%clk 0:02:49.3]} 9... e5 {[%clk
0:02:53.7]} 10. a4 {[%clk 0:02:49]} 10... b6 {[%clk 0:02:52.9]} 11. Nf1 {[%clk
0:02:42.2]} 11... Re8 {[%clk 0:02:48.1]} 12. Ng3 {[%clk 0:02:41.9]} 12... Bb7
{[%clk 0:02:33.3]} 13. dxe5 {[%clk 0:02:38.2]} 13... dxe5 {[%clk 0:02:28.8]} 14.
Be3 {[%clk 0:02:37.6]} 14... h6 {[%clk 0:02:23.3]} 15. Qd2 {[%clk 0:02:33.7]}
15... Kh7 {[%clk 0:02:23.2]} 16. a5 {[%clk 0:02:28.1]} 16... c5 {[%clk
0:02:20.3]} 17. Qe2 {[%clk 0:02:21.3]} 17... Nf8 {[%clk 0:02:18.7]} 18. Bb5
{[%clk 0:02:11.4]} 18... Re7 {[%clk 0:02:11]} 19. a6 {[%clk 0:02:06.7]} 19...
Bxe4 {[%clk 0:01:55]} 20. Nxe4 {[%clk 0:01:58.2]} 20... Nxe4 {[%clk 0:01:55.9]}
21. Bc4 {[%clk 0:00:49.5]} 21... Nd6 {[%clk 0:01:51]} 22. Bd5 {[%clk 0:00:48.4]}
22... Rd8 {[%clk 0:01:50.3]} 23. Rad1 {[%clk 0:00:48.4]} 23... e4 {[%clk
0:01:26.8]} 24. Nd2 {[%clk 0:00:45.9]} 24... f5 {[%clk 0:01:18.5]} 25. Bf4
{[%clk 0:00:46]} 25... Be5 {[%clk 0:01:14.3]} 26. Bxe5 {[%clk 0:00:42.2]} 26...
Rxe5 {[%clk 0:01:15.2]} 27. c4 {[%clk 0:00:40.8]} 27... Rde8 {[%clk 0:01:01.4]}
28. Qe3 {[%clk 0:00:33.4]} 28... g5 {[%clk 0:00:54.8]} 29. f3 {[%clk 0:00:23.9]}
29... exf3 {[%clk 0:00:23]} 30. Qxe5 {[%clk 0:00:23.6]} 30... f2+ {[%clk
0:00:23.5]} 31. Kxf2 {[%clk 0:00:21.1]} 31... Rxe5 {[%clk 0:00:11.2]} 32. Rxe5
{[%clk 0:00:22]} 32... Ne4+ {[%clk 0:00:11.7]} 33. Rxe4 {[%clk 0:00:21]} 33...
fxe4 {[%clk 0:00:11.9]} 34. Nxe4 {[%clk 0:00:18.8]} 34... Qe5 {[%clk 0:00:10.3]}
35. Rd2 {[%clk 0:00:13.3]} 35... Ng6 {[%clk 0:00:09.8]} 36. Bb7 {[%clk 0:00:13]}
36... Nf4 {[%clk 0:00:08.5]} 37. Kf3 {[%clk 0:00:09.2]} 37... Ne6 {[%clk
0:00:07.1]} 38. Rd7+ {[%clk 0:00:08.1]} 38... Kg6 {[%clk 0:00:07.1]} 39. Bd5
{[%clk 0:00:05.5]} 39... Nd4+ {[%clk 0:00:04.2]} 40. Kf2 {[%clk 0:00:01.9]}
40... Qf4+ {[%clk 0:00:05]} 41. Ke1 {[%clk 0:00:02.5]} 41... Qe3+ {[%clk
0:00:04.3]} 42. Kf1 {[%clk 0:00:01.9]} 42... Qf4+ {[%clk 0:00:04.1]} 43. Ke1
{[%clk 0:00:01.9]} 43... Qc1+ {[%clk 0:00:04.1]} 44. Kf2 {[%clk 0:00:01.6]}
44... Qxb2+ {[%clk 0:00:04.3]} 45. Kg3 {[%clk 0:00:01.6]} 45... Ne2+ {[%clk
0:00:03.7]} 46. Kh2 {[%clk 0:00:02]} 46... Qe5+ {[%clk 0:00:03.5]} 47. g3 {[%clk
0:00:02.3]} 47... Qb2 {[%clk 0:00:03.1]} 48. Bf7+ {[%clk 0:00:02.2]} 48... Kf5
{[%clk 0:00:02.6]} 49. Nd6+ {[%clk 0:00:01.3]} 49... Ke5 {[%clk 0:00:02.1]} 50.
Kg2 {[%clk 0:00:01.3]} 50... Nf4+ {[%clk 0:00:01.9]} 51. Kf3 {[%clk 0:00:01.2]}
51... Qe2# {[%clk 0:00:02.2]} 0-1